Cogmind - Beta 10.2 @@@ ROGUE MODE // 2021.07.12 @ 23:03:53 Player: CrossedViper Result: Destroyed by D-53 Grenadier with Mini Grenade Launcher Performance ------------- Evolutions (0) 0 Regions Visited (4) 800 Robots Destroyed (27) 135 Value Destroyed (730) 730 Prototype IDs (23) 460 Alien Tech Used (0) 0 Bonus (0) 0 TOTAL SCORE: 2125 Bonus ------- None Cogmind --------- Core Integrity 0/250 Matter 290/300 Energy 236/250 System Corruption 2% Temperature Cool (0) Movement Treading (160) Location -9/Mines Parts ------- > --- POWER (1) -------- Ion Engine > --- PROPULSION (2) --- Improved Treads Improved Treads > --- UTILITY (2) ------ (None) > --- WEAPON (2) ------- (None) > --- INVENTORY (4) ---- Improved Treads Heavy Armor Plating Peak State ------------ > --- POWER ------------ Ion Engine > --- PROPULSION ------- Improved Treads Improved Treads > --- UTILITY ---------- High-capacity Storage Unit Medium Armor Plating > --- WEAPON ----------- Assault Rifle Plasma Cutter > --- INVENTORY -------- Improved Treads Improved Treads Large Storage Unit Medium Armor Plating Medium Armor Plating Medium Armor Plating Heavy Armor Plating AWS/Autocannon [Rating: 15] Favorites ----------- Power Ion Engine Engine Ion Engine Propulsion Light Treads Treads Light Treads Utility High-capacity Storage Unit Storage High-capacity Storage Unit Protection Medium Armor Plating Weapon Light Assault Rifle Ballistic Gun Light Assault Rifle Special Weapon Plasma Cutter Build | -11 -10 -10 -10 -9 ------- Run | Scr Mat Min Exi Min Slots Evolved . | . . . . . Power . | . . . . . Propulsion . | . . . . . Utility . | . . . . . Weapon . | . . . . . Parts Attached 25 | 6 5 8 4 2 Power 2 | 1 . 1 . . Engine 2 | 1 . 1 . . Core . | . . . . . Reactor . | . . . . . Propulsion 7 | 2 . 3 1 1 Treads 7 | 2 . 3 1 1 Leg . | . . . . . Wheel . | . . . . . Hover . | . . . . . Flight . | . . . . . Utility 6 | 1 3 1 . 1 Device . | . . . . . Storage 4 | 1 3 . . . Processor . | . . . . . Hackware . | . . . . . Protection 2 | . . 1 . 1 Artifact . | . . . . . Weapon 10 | 2 2 3 3 . Energy Gun . | . . . . . Energy Cannon . | . . . . . Ballistic Gun 9 | 2 2 3 2 . Ballistic Cannon . | . . . . . Launcher . | . . . . . Special Weapon 1 | . . . 1 . Impact Weapon . | . . . . . Slashing Weapon . | . . . . . Piercing Weapon . | . . . . . Special Melee Weapon . | . . . . . Unidentified Prototypes . | . . . . . Parts Lost 11 | . 2 6 . 3 Power 1 | . . 1 . . Propulsion 2 | . . 2 . . Utility 1 | . . . . 1 Weapon 7 | . 2 3 . 2 Highest Loss Streak 4 | . 2 4 . 3 Average Slot Usage (%) 99 | . 99 95 100 100 Engine 13 | . 14 11 14 14 Treads 27 | . 28 27 28 28 Storage 19 | . 27 25 14 14 Protection 8 | . . 2 14 14 Ballistic Gun 25 | . 27 27 23 28 Special Weapon 2 | . . . 4 . Naked Turns . | . . . . . Heaviest Build 55 | 10 54 55 47 47 Greatest Support 46 | 40 40 43 46 46 Greatest Overweight (x) 1 | . 1 1 1 1 Average Overweight (x) . | . . 1 1 . Largest Inventory Capacity 18 | 6 18 18 12 12 Average Capacity 13 | 4 16 16 12 11 Most Carried 18 | 4 18 18 12 12 Average Carried 9 | 1 4 13 11 11 Final Capacity 18 | 6 18 12 12 4 Final Carried 18 | 1 18 11 12 3 Class Distribution -------------------- 100% | Mutant Dominant Class ---------------- Mutant | -10/Materials Mutant | -10/Mines Mutant | -10/Exiles Mutant | -9/Mines Resources | -11 -10 -10 -10 -9 ----------- Run | Scr Mat Min Exi Min Matter Collected 671 | 236 223 101 71 40 Remotely . | . . . . . Salvage Created 1080 | . 607 218 210 45 Parts 65 | . 41 9 13 2 Haulers Intercepted 1 | . 1 . . . Recyclers Shooed 1 | . . 1 . . Parts Field Recycled . | . . . . . Retrieved Matter . | . . . . . Parts Self-Destructed . | . . . . . Prevented . | . . . . . Kills | -11 -10 -10 -10 -9 ------- Run | Scr Mat Min Exi Min Combat Hostiles Destroyed 26 | . 15 7 1 3 Guns 26 | . 15 7 1 3 Classes Destroyed 4 | . 3 . 1 . Hauler 1 | . 1 . . . Swarmer 9 | . 3 3 . 3 Grunt 16 | . 12 4 . . Hunter 1 | . . . 1 . Best Kill Streak 5 | . 5 3 1 3 Combat Bots Only 4 | . 4 3 1 3 Max Kills in Single Turn 1 | . 1 1 1 1 Gunslinging . | . . . . . Exploded . | . . . . . Melee . | . . . . . Uniques/NPCs Destroyed . | . . . . . Combat | -11 -10 -10 -10 -9 -------- Run | Scr Mat Min Exi Min Damage Taken 1815 | . 634 592 . 589 Core 254 | . 106 96 . 52 Absorbed by Shields . | . . . . . Core Remaining (%) 100 | 100 . . . . Volleys Fired 109 | . 57 35 7 10 Largest 2 | . 2 2 2 2 Hottest 40 | . 40 40 40 40 Shots Fired 209 | . 112 68 9 20 Gun 206 | . 112 68 6 20 Cannon . | . . . . . Launcher . | . . . . . Special 3 | . . . 3 . Kinetic 206 | . 112 68 6 20 Thermal 3 | . . . 3 . Explosive . | . . . . . Electromagnetic . | . . . . . Robot Hit Streak 22 | . 22 10 9 6 Robot Miss Streak 5 | . 3 3 . 5 Penetration Max . | . . . . . Secondary Targets 2 | . . 1 . 1 Max Gunslinging Chain 1 | . . 1 . 1 Shots Hit Robots 150 | . 86 44 8 12 Core Hits 70 | . 38 21 6 5 Critical Hits 2 | . 1 . 1 . Critical Kills 1 | . . . 1 . Critical Parts Destroyed 1 | . 1 . . . Melee Attacks . | . . . . . Impact . | . . . . . Slashing . | . . . . . Piercing . | . . . . . Sneak Attacks . | . . . . . Combat Hostiles . | . . . . . Follow-up Attacks . | . . . . . Damage Inflicted 1353 | 3 794 362 84 110 Guns 1310 | . 785 362 53 110 Cannons . | . . . . . Explosions . | . . . . . Melee . | . . . . . Ramming 12 | 3 9 . . . Kinetic 1310 | . 785 362 53 110 Thermal 31 | . . . 31 . Explosive . | . . . . . Electromagnetic . | . . . . . Impact . | . . . . . Slashing . | . . . . . Piercing . | . . . . . Highest Corruption 2 | . 2 2 2 2 Average Corruption 2 | . 2 2 2 2 Corruption Purged . | . . . . . Effects 19 | . 5 8 5 1 Message Errors 5 | . . 2 3 . Heat Flow Errors 5 | . 1 2 2 . Energy Discharges 3 | . 2 1 . . Data Loss (minor) 2 | . . 1 . 1 Targeting Errors 3 | . 1 2 . . Weapon Failures 1 | . 1 . . . Overload Shots . | . . . . . Overflow Damage . | . . . . . Projectiles . | . . . . . Explosions . | . . . . . Melee . | . . . . . Knockbacks 1 | . 1 . . . Impact 1 | . 1 . . . Kinetic . | . . . . . Secondary . | . . . . . Self-Inflicted Damage . | . . . . . Shots . | . . . . . Rammed 2 | 1 1 . . . Targets Rammed 2 | 1 1 . . . Kicked . | . . . . . Crushed . | . . . . . Highest Temperature 232 | . 133 182 232 12 Average Temperature 37 | . 16 40 98 5 Received Heat Transfer 618 | . 321 297 . . Siege Activations . | . . . . . Robots Corrupted . | . . . . . Combat Hostiles . | . . . . . Parts Fried . | . . . . . Impact Corruptions . | . . . . . Robots Melted . | . . . . . Combat Hostiles . | . . . . . Parts Melted . | . . . . . Heat Transferred 111 | . . . 111 . Parts Sabotaged . | . . . . . Parts Stolen . | . . . . . Parts Stripped . | . . . . . Power Chain Reactions . | . . . . . Missiles Intercepted . | . . . . . Alert | -11 -10 -10 -10 -9 ------- Run | Scr Mat Min Exi Min Peak Influence 238 | . 238 199 . 70 Initial 89 | . . 89 . . Average 101 | . 119 132 . 32 Maximum Alert Level 1 | . 1 . . . Low Security (%) 86 | 100 73 100 . 100 Level 1 13 | . 26 . . . Level 2 . | . . . . . Level 3 . | . . . . . Level 4 . | . . . . . Level 5 . | . . . . . High Security . | . . . . . Max Security . | . . . . . Squads Dispatched 6 | . 5 1 . . Investigation 3 | . 2 1 . . Extermination . | . . . . . Reinforcement 3 | . 3 . . . Assault . | . . . . . Garrison . | . . . . . Intercept . | . . . . . Construction Impeded . | . . . . . Haulers Reinforced . | . . . . . Stealth | -11 -10 -10 -10 -9 --------- Run | Scr Mat Min Exi Min Distress Signals 2 | . 2 . . . Communications Jammed . | . . . . . Distress Signals . | . . . . . Times Spotted 37 | . 23 8 . 6 Peak Tracking Total 4 | . 4 3 . 3 Tactical Retreats 1 | . 1 . . . Traps | -11 -10 -10 -10 -9 ------- Run | Scr Mat Min Exi Min Traps Triggered 3 | . 3 . . . Indirectly . | . . . . . Trap Hack Attempts . | . . . . . Triggered . | . . . . . Disarmed . | . . . . . Reprogrammed . | . . . . . Reused . | . . . . . Traps Extracted . | . . . . . Installed . | . . . . . Triggered . | . . . . . Machines | -11 -10 -10 -10 -9 ---------- Run | Scr Mat Min Exi Min Machines Disabled . | . . . . . Max in Single Turn . | . . . . . Machines Sabotaged . | . . . . . Garrisons Compromised . | . . . . . Overloaded Fab Kills . | . . . . . Fab Network Shutdowns . | . . . . . Hacking | -11 -10 -10 -10 -9 --------- Run | Scr Mat Min Exi Min Machines Accessed 6 | . 3 1 2 . Terminals 2 | . 2 . . . Fabricators . | . . . . . Repair Stations . | . . . . . Recycling Units 1 | . 1 . . . Scanalyzers . | . . . . . Garrison Access . | . . . . . Total Hacks 11 | . 8 1 2 . Successful 6 | . 3 1 2 . Failed 5 | . 5 . . . Catastrophic . | . . . . . Database Lockouts . | . . . . . Manual 9 | . 8 . 1 . Terminals 7 | . 7 . . . Fabricators . | . . . . . Repair Stations . | . . . . . Recycling Units 1 | . 1 . . . Scanalyzers . | . . . . . Garrison Access . | . . . . . Terminal Hacks 5 | . 2 1 2 . Record 1 | . . . 1 . Robot Analysis 1 | . 1 . . . Open Door 1 | . . 1 . . Branch Access Points 1 | . 1 . . . EX-Prototype ID Bank 1 | . . . 1 . Fabricator Hacks . | . . . . . Repair Station Hacks . | . . . . . Recycling Unit Hacks . | . . . . . Scanalyzer . | . . . . . Garrison Access Hacks . | . . . . . Unauthorized Hacks 1 | . 1 . . . Terminals . | . . . . . Fabricators . | . . . . . Repair Stations . | . . . . . Recycling Units 1 | . 1 . . . Tunnel 1 | . 1 . . . Scanalyzers . | . . . . . Garrison Access . | . . . . . Data Cores Recovered . | . . . . . Used . | . . . . . Hacking Detections 2 | . 2 . . . Full Trace Events 2 | . 2 . . . Feedback Events . | . . . . . Feedback Blocked . | . . . . . Robot Schematics Acquired . | . . . . . Robots Built . | . . . . . Matter . | . . . . . Time . | . . . . . Total Robot Build Rating . | . . . . . Part Schematics Acquired . | . . . . . Parts Built . | . . . . . Matter . | . . . . . Time . | . . . . . Total Part Build Rating . | . . . . . Parts Repaired . | . . . . . Time . | . . . . . Parts Recycled . | . . . . . Recycled Matter . | . . . . . Retrieved Matter . | . . . . . Retrieved Components . | . . . . . Parts Scanalyzed . | . . . . . Part Schematics Acquired . | . . . . . Parts Damaged . | . . . . . Bothacking | -11 -10 -10 -10 -9 ------------ Run | Scr Mat Min Exi Min Used RIF Installer . | . . . . . Robots Hacked . | . . . . . Non-combat . | . . . . . Combat . | . . . . . Robot Hacks Applied . | . . . . . Relay Couplers Released . | . . . . . Robots Rewired 1 | . . . 1 . Allies Hacked . | . . . . . Hacks Repelled . | . . . . . Allies | -11 -10 -10 -10 -9 -------- Run | Scr Mat Min Exi Min Total Allies 1 | . . . 1 . Largest Group 1 | . . . 1 1 Highest-Rated Group 8 | . . . 8 8 Highest-Rated Ally 8 | . . . 8 8 Total Orders . | . . . . . Ally Attacks 2 | . . . . 2 Total Damage 22 | . . . . 22 Kills . | . . . . . Allies Corrupted . | . . . . . Allies Melted . | . . . . . Intel | -11 -10 -10 -10 -9 ------- Run | Scr Mat Min Exi Min Robot Analysis Total 1 | . 1 . . . Derelict Logs Recovered . | . . . . . Drone Launches . | . . . . . Drone Recoveries . | . . . . . Exploration | -11 -10 -10 -10 -9 ------------- Run | Scr Mat Min Exi Min Turns Passed 2654 | 96 721 379 1249 209 Spaces Moved 1311 | 80 315 152 673 91 Core 41 | 41 . . . . Treads 1270 | 39 315 152 673 91 Legs . | . . . . . Wheels . | . . . . . Hover . | . . . . . Flight . | . . . . . Fastest Speed 50 | 50 160 180 180 160 Average Speed 172 | 103 167 180 180 179 Slowest Speed 180 | 160 180 180 180 180 Overloaded Moves . | . . . . . Propulsion Burnouts . | . . . . . Robots Hopped . | . . . . . Cave-ins Triggered . | . . . . . Exploration Rate (%) 41 | 4 61 32 89 19 Regions Visited 4 Branch Regions 3 Pre-discovered Areas 2 | . 1 . 1 . Known Exits Taken 1 | . 1 . . . Unknown Exits Taken 3 | 1 . 1 1 . Scrap Searched 1 | . . 1 . . Spaces Dug . | . . . . . Terrain Destroyed . | . . . . . Melee . | . . . . . Projectile . | . . . . . AOE . | . . . . . Terrain Rammed . | . . . . . Walls Destroyed . | . . . . . Machines Disabled . | . . . . . Actions | -11 -10 -10 -10 -9 --------- Run | Scr Mat Min Exi Min Total 1532 | 92 411 206 701 122 Wait 25 | . 13 1 . 11 Move 1307 | 79 314 151 672 91 Hop . | . . . . . Pick Up 34 | 6 19 5 4 . Fast Attach 4 | 1 1 1 1 . Attach 17 | 5 2 7 1 2 Detach . | . . . . . Swap 4 | . 2 . 2 . Drop 22 | . 2 6 6 8 Fire 109 | . 57 35 7 10 Melee . | . . . . . Ram . | . . . . . Kick . | . . . . . Crush 2 | 1 1 . . . Escape Stasis . | . . . . . Rewire 8 | . . . 8 . Trap . | . . . . . Miscellaneous . | . . . . . Route ------- -11/Scrapyard -10/Materials (discovered 3 exits: [*Mat x2] / *Min) -10/Mines (discovered 3 exits: [*Mat x2] / *Exi) -10/Exiles -9/Mines History --------- Turn | Location | Event 5 | -11/Scrapyard | Discovered new exit (range 16) 97 | -11/Scrapyard | Entered Materials 125 | -10/Materials | Identified exit to Mines 258 | -10/Materials | Discovered new exit (range 15) 305 | -10/Materials | Build established: Mutant 606 | -10/Materials | Discovered new exit (range 15) 818 | -10/Materials | Entered Mines 840 | -10/Mines | Core integrity fell below 50% 874 | -10/Mines | Lost 4 parts (1p1n2w) 921 | -10/Mines | Discovered new exit (range 14) 1034 | -10/Mines | Discovered new exit (range 15) 1062 | -10/Mines | Met a Derelict shopkeep closing up shop 1133 | -10/Mines | Core integrity fell below 20% 1185 | -10/Mines | Deemed a non-threat by the Exiles lab entrance 1186 | -10/Mines | Discovered new exit (range 5) 1197 | -10/Mines | Entered Exiles 1197 | -10/Exiles | Found Exiles lab destroyed 1630 | -10/Exiles | Learned location of Zion (-7) 1895 | -10/Exiles | Opened EX-Vault 1909 | -10/Exiles | Found AWS/Autocannon 2428 | -10/Exiles | Discovered new exit (range 10) 2446 | -10/Exiles | Entered Mines 2446 | -9/Mines | Accompanied by 1 ally 2447 | -9/Mines | Assembled infested the area 2452 | -9/Mines | Assisted by a Guerilla fighting off Assembled 2655 | -9/Mines | Destroyed by D-53 Grenadier with Mini Grenade Launcher Last Messages --------------- 02555_ S-10 Pest destroyed. 02556_ Acquired 3 matter. 02566_ S-10 Pest destroyed. 02569_ Acquired 17 matter. 02636_ System corrupted: Component data lost. 02647_ Med. Armor Plating destroyed. 02647_ Dropped Lrg. Storage Unit. 02648_ Dropped Plasma Cutter. 02650_ The unstable cave ceiling collapses. 02650_ Dropped Mak. Salvage Targeting Computer. 02650_ Dropped Imp. Treads. 02651_ The unstable cave ceiling collapses. 02651_ Assault Rifle destroyed. 02652_ Dropped Mak. Terrain Scanner. 02654_ Dropped AWS/Autocannon. 02654_ Dropped Hcp. Storage Unit. 02654_ Lgt. Assault Rifle destroyed. 02655_ The unstable cave ceiling collapses. 02655_ K-01 Serf collects debris. 02655_ Dropped Med. Armor Plating. Map ----- +----------------------------------------------------+ | ?????????????????????????????????????????????????? | | ?????????????????????????????????????????????????? | | ?????????????????????????????????????????????????? | | ?????????????????????????????????????????????????? | | ?????????????????????????????????????????????????? | | ?????????????????????????????????????????????????? | | ?????????????????????????????????????????????????? | | ?????????????????????????????????????????????????? | | ?????????????????????????????????????????????????? | | ?????????????????????????????????????????????????? | | ???????????????????#??????? ????????????????????? | | ??????????????????# ??#???? #???????????????????? | | ?????????????????? ?? ##?? #???????????????????? | | ?????????????????? #? #???????????????????? | | ??????????????????# """ ? #???????????????????? | | ??????????????????# """ # =###?????????????????? | | ?????????????????## %"? !% ##????????????????? | | ?????????????????# ? d k ####?##??????????? | | ?????????????????? ?? $ # # ??????????? | | ??????####????????# #?? # % ???????????? | | ????### ########## "#?## !% ?????????????? | | ???## "### d %*???????????????? | | ???# ######### ;## # #????????????????? | | ???# #??????## #????????????????? | | ???# #?????## ! # # ???????? | | ???# ##?????# < !@!! #??????????????? | | ???## #??????# ###??????????????? | | ????## ##?????# #????????????????? | | ????## ##????## # ##????????????????? | | ???## ##????### ### ####?????????????????? | | ??## ########%#########???????????????????? | | ?## """ % % #[#?????????????????????????? | | ?# """ #######*%=#?????????????????????????? | | ?# """ ##????###%#?????????????????????????? | | ?## """ ##?????#%#?????????????????????????? | | ??##### #?#####=###???????????????????????? | | ??????## #?# """ #???????????????????????? | | ???????## ##?# """ #???????????????????????? | | ????????### ##??# """ #???????????????????????? | | ??????????####???# % #???????????????????????? | | ?????????????????# #???????????????????????? | | ?????????????????# #???????????????????????? | | ?????????????????#########???????????????????????? | | ?????????????????????????????????????????????????? | | ?????????????????????????????????????????????????? | | ?????????????????????????????????????????????????? | | ?????????????????????????????????????????????????? | | ?????????????????????????????????????????????????? | | ?????????????????????????????????????????????????? | | ?????????????????????????????????????????????????? | +----------------------------------------------------+ Best States ------------- Heat Dissipation 25 Energy Generation 10 Energy Capacity 250 Matter Stores 300 Matter Capacity 300 Sight Range 16 Terrain Scan Density 10 Armor Coverage 225 Evasion (%) 50 Recoil Reduction 2 Item Schematics ----------------- None Robot Schematics ------------------ None Fabricated ------------ Nothing Alien Tech Used ----------------- None Achievements -------------- None Challenges ------------ None Game ------ Seed CooledGaussLog Manual? 0 Play Time 00:14:30 Cumulative 495.3 hours Start 2021.07.12 @ 22:49:58 End 2021.07.12 @ 23:03:53 Sessions 1 Manual Loads 0 Difficulty Rogue Special Mode None Game No. 366 Rogue 359 Adventurer 0 Explorer 7 Win Type - Total 26 Types 9/3/9/1/0/1/1/1/1 Lore% 86 Gallery% 95 Achievement% 81 Wizard Run 0 Options --------- ASCII 0 Keyboard 0 Movement Numpad Keybinds 0 Fullscreen 1 Font 18/X11Bold Map View 76x50 Tactical HUD 1 Map Filters NONE Filters NONE Steam 1 RUN: 373051df-00ab-458a-a902-f9fda867a706